fUST/lending_fUST_20251208
["ID","MTS","AMOUNT","RATE_DAILY","PERIOD"]
[397046337,1765143041258,-968.21626499,0.00010749,2]
[397046340,1765143041268,-631.0,0.00010792,2]
[397046342,1765143041279,-2155.0,0.00010792,2]
[397046344,1765143041288,-1359.0,0.00010792,2]
[397046346,1765143041298,-415.0,0.00010792,2]
[397046348,1765143041308,-501.36022957,0.00010822,2]
[397046350,1765143041318,-500.0,0.00010822,2]
[397046352,1765143041328,-500.0,0.00010822,2]
[397046354,1765143041337,-546.0,0.00010822,2]
[397046356,1765143041347,-500.0,0.00010822,2]
[397046358,1765143041358,-151.0,0.00010822,2]
[397046379,1765143041544,-151.0,0.00010822,2]
[397046381,1765143041556,-151.19917669,0.00010822,2]
[397046383,1765143041567,-500.0,0.00010822,2]
[397046385,1765143041576,-151.0,0.00010822,2]
[397046387,1765143041585,-500.0,0.00010822,2]
[397046389,1765143041595,-224.70470214,0.00010822,2]
[397046390,1765143041605,-151.0,0.00010822,2]
[397046392,1765143041614,-500.0,0.00010822,2]
[397046394,1765143041624,-151.0,0.00010822,2]
[397046396,1765143041634,-151.0,0.00010822,2]
[397046398,1765143041644,-151.0,0.00010822,2]
[397046400,1765143041654,-500.0,0.00010822,2]
[397046403,1765143041664,-500.0,0.00010822,2]
[397046405,1765143041674,-500.0,0.00010822,2]
[397046406,1765143041684,-151.0,0.00010849,2]
[397046408,1765143041693,-300.0,0.00010898,2]
[397046411,1765143041703,-300.0,0.00010898,2]
[397046413,1765143041712,-300.0,0.00010898,2]
[397046415,1765143041723,-300.0,0.00010898,2]
[397046417,1765143041733,-300.0,0.00010898,2]
[397046419,1765143041742,-300.0,0.00010898,2]
[397046421,1765143041752,-300.0,0.00010898,2]
[397046423,1765143041762,-300.0,0.00010898,2]
[397046425,1765143041772,-300.0,0.00010898,2]
[397046427,1765143041781,-300.0,0.00010898,2]
[397046429,1765143041790,-300.0,0.00010898,2]
[397046431,1765143041800,-300.0,0.00010898,2]
[397046433,1765143041809,-300.0,0.00010898,2]
[397046435,1765143041819,-300.0,0.00010898,2]
[397046437,1765143041828,-300.0,0.00010898,2]
[397046439,1765143041837,-600.0,0.00010898,2]
[397046441,1765143041847,-500.0,0.00010923,2]
[397046443,1765143041856,-292.1693925,0.00010929,2]
[397046445,1765143041865,-291.87868026,0.0001094,2]
[397046447,1765143041877,-400.0,0.00010959,2]
[397046449,1765143041886,-500.0,0.00010959,2]
[397046451,1765143041895,-321.267363,0.00010959,2]
[397046453,1765143041904,-321.267363,0.00010959,2]
[397046455,1765143041914,-321.267363,0.00010959,2]
[397046457,1765143041923,-321.267363,0.00010959,2]
[397046459,1765143041931,-321.267363,0.00010959,2]
[397046461,1765143041941,-321.267363,0.00010959,2]
[397046463,1765143041949,-321.267363,0.00010959,2]
[397046465,1765143041960,-321.267363,0.00010959,2]
[397046467,1765143041970,-321.267363,0.00010959,2]
[397046469,1765143041979,-321.267363,0.00010959,2]
[397046471,1765143041988,-321.267363,0.00010959,2]
[397046473,1765143041997,-321.267363,0.00010959,2]
[397046475,1765143042007,-321.267363,0.00010959,2]
[397046477,1765143042016,-321.267363,0.00010959,2]
[397046479,1765143042025,-321.267363,0.00010959,2]
[397046481,1765143042034,-321.267363,0.00010959,2]
[397046483,1765143042044,-321.267363,0.00010959,2]
[397046485,1765143042053,-321.267363,0.00010959,2]
[397046487,1765143042062,-321.267363,0.00010959,2]
[397046489,1765143042071,-321.267371,0.00010959,2]
[397046491,1765143042081,-151.0,0.00010959,2]
[397046493,1765143042090,-151.0,0.00010959,2]
[397046495,1765143042099,-151.0,0.00010959,2]
[397046497,1765143042107,-151.0,0.00010959,2]
[397046499,1765143042116,-151.0,0.00010959,2]
[397046501,1765143042126,-151.0,0.00010959,2]
[397046503,1765143042134,-151.0,0.00010959,2]
[397046505,1765143042143,-151.0,0.00010959,2]
[397046507,1765143042153,-151.0,0.00010959,2]
[397046509,1765143042161,-220.765835,0.00010959,2]
[397046511,1765143042171,-339.0495744,0.00010959,2]
[397046513,1765143042180,-500.0,0.00010959,2]
[397046515,1765143042189,-304.88329445,0.00010959,2]
[397046517,1765143042198,-546.0,0.00010959,2]
[397046519,1765143042207,-500.0,0.00010959,2]
[397046521,1765143042218,-202.6966336,0.00010959,2]
[397046523,1765143042227,-199.92108953,0.00010959,2]
[397046525,1765143042236,-151.45710674,0.00010959,2]
[397046527,1765143042246,-151.0,0.00010959,2]
[397046529,1765143042255,-500.0,0.00010959,2]
[397046531,1765143042264,-151.0,0.00010959,2]
[397046533,1765143042274,-564.96815257,0.00010959,2]
[397046535,1765143042283,-151.0,0.00010959,2]
[397046537,1765143042292,-151.0,0.00010959,2]
[397046539,1765143042301,-151.0,0.00010959,2]
[397046541,1765143042310,-500.0,0.00010959,2]
[397046543,1765143042319,-500.0,0.00010959,2]
[397046545,1765143042328,-500.0,0.00010959,2]
[397046547,1765143042337,-170.15,0.00010959,2]
[397046549,1765143042346,-883.35286858,0.00010959,2]
[397046551,1765143042356,-883.35286858,0.00010959,2]
[397046553,1765143042365,-883.35286858,0.00010959,2]
[397046555,1765143042374,-883.35286858,0.00010959,2]
[397046557,1765143042383,-883.35286858,0.00010959,2]
[397046559,1765143042393,-883.35286858,0.00010959,2]
[397046561,1765143042402,-883.35286858,0.00010959,2]
[397046563,1765143042411,-883.35286858,0.00010959,2]
[397046565,1765143042420,-883.35286858,0.00010959,2]
[397046567,1765143042429,-883.35286858,0.00010959,2]
[397046569,1765143042438,-883.35286858,0.00010959,2]
[397046571,1765143042447,-883.35286858,0.00010959,2]
[397046574,1765143042468,-883.35286858,0.00010959,2]
[397046577,1765143042486,-883.35286858,0.00010959,2]
[397046580,1765143042503,-883.35286858,0.00010959,2]
[397046583,1765143042521,-883.35286858,0.00010959,2]
[397046586,1765143042540,-883.35286858,0.00010959,2]
[397046589,1765143042558,-500.0,0.00010959,2]
[397046591,1765143042575,-500.0,0.00010959,2]
[397046594,1765143042591,-500.0,0.00010959,2]
[397046596,1765143042606,-500.0,0.00010959,2]
[397046599,1765143042624,-500.0,0.00010959,2]
[397046602,1765143042642,-500.0,0.00010959,2]
[397046605,1765143042661,-500.0,0.00010959,2]
[397046607,1765143042672,-500.0,0.00010959,2]
[397046610,1765143042689,-500.0,0.00010959,2]
[397046613,1765143042703,-500.0,0.00010959,2]
[397046616,1765143042719,-500.0,0.00010959,2]
[397046618,1765143042731,-500.0,0.00010959,2]
[397046620,1765143042745,-500.0,0.00010959,2]
[397046623,1765143042759,-500.0,0.00010959,2]
[397046625,1765143042773,-564.74799839,0.00010959,2]
[397046626,1765143042788,-500.0,0.00010959,2]
[397046627,1765143042802,-500.0,0.00010959,2]
[397046628,1765143042820,-500.0,0.00010959,2]
[397046629,1765143042835,-500.0,0.00010959,2]
[397046630,1765143042848,-500.0,0.00010959,2]
[397046631,1765143042862,-500.0,0.00010959,2]
[397046632,1765143042877,-500.0,0.00010959,2]
[397046633,1765143042892,-500.0,0.00010959,2]
[397046634,1765143042905,-500.0,0.00010959,2]
[397046635,1765143042919,-500.0,0.00010959,2]
[397046636,1765143042933,-500.0,0.00010959,2]
[397046637,1765143042947,-500.0,0.00010959,2]
[397046639,1765143042961,-500.0,0.00010959,2]
[397046642,1765143042975,-500.0,0.00010959,2]
[397046644,1765143042988,-500.0,0.00010959,2]
[397046647,1765143043002,-500.0,0.00010959,2]
[397046650,1765143043016,-500.0,0.00010959,2]
[397046652,1765143043033,-500.0,0.00010959,2]
[397046655,1765143043047,-500.0,0.00010959,2]
[397046657,1765143043061,-500.0,0.00010959,2]
[397046660,1765143043075,-939.56623295,0.00010959,2]
[397046662,1765143043090,-939.56623295,0.00010959,2]
[397046665,1765143043104,-939.56623295,0.00010959,2]
[397046667,1765143043119,-939.56623295,0.00010959,2]
[397046670,1765143043132,-939.56623295,0.00010959,2]
[397046673,1765143043147,-939.56623295,0.00010959,2]
[397046675,1765143043160,-939.56623295,0.00010959,2]
[397046678,1765143043174,-939.56623295,0.00010959,2]
[397046680,1765143043188,-939.56623295,0.00010959,2]
[397046683,1765143043203,-500.0,0.00010959,2]
[397046685,1765143043218,-500.0,0.00010959,2]
[397046688,1765143043232,-500.0,0.00010959,2]
[397046690,1765143043245,-939.56623295,0.00010959,2]
[397046693,1765143043258,-699.95894489,0.00010962,2]
[397046695,1765143043272,-292.75237064,0.00010962,2]
[397046698,1765143043286,-1680.0,0.00010992,2]
[397046700,1765143043300,-1927.65161002,0.00010992,2]
[397046703,1765143043314,-1680.0,0.00010998,2]
[397046705,1765143043328,-420.0,0.00010999,2]
[397046708,1765143043342,-5000.0,0.00011,2]
[397046710,1765143043356,-151.0,0.00011,2]
[397046713,1765143043371,-151.0,0.00011,2]
[397046715,1765143043384,-151.0,0.00011,2]
[397046718,1765143043398,-1927.65161002,0.00011077,2]
[397046720,1765143043412,-500.0,0.00011096,2]
[397046723,1765143043426,-546.0,0.00011096,2]
[397046725,1765143043439,-500.0,0.00011096,2]
[397046728,1765143043453,-151.0,0.00011096,2]
[397046731,1765143043468,-500.0,0.00011096,2]
[397046733,1765143043482,-198.19237479,0.00011096,2]
[397046736,1765143043496,-151.0,0.00011096,2]
[397046738,1765143043509,-151.0,0.00011096,2]
[397046741,1765143043523,-300.336891,0.00011096,2]
[397046743,1765143043537,-500.0,0.00011096,2]
[397046746,1765143043552,-500.0,0.00011096,2]
[397046748,1765143043570,-500.0,0.00011096,2]
[397046751,1765143043585,-151.0,0.000111,2]
[397046753,1765143043600,-151.0,0.000111,2]
[397046756,1765143043614,-151.0,0.000111,2]
[397046759,1765143043629,-151.0,0.000111,2]
[397046761,1765143043645,-151.0,0.000111,2]
[397046764,1765143043660,-151.0,0.000111,2]
[397046766,1765143043675,-151.0,0.000111,2]
[397046769,1765143043689,-151.0,0.000111,2]
[397046771,1765143043703,-151.0,0.000111,2]
[397046774,1765143043717,-1927.65161002,0.00011161,2]
[397046776,1765143043731,-500.0,0.00011197,2]
[397046779,1765143043746,-151.0,0.000112,2]
[397046782,1765143043761,-151.0,0.000112,2]
[397046784,1765143043775,-151.0,0.000112,2]
[397046787,1765143043789,-151.0,0.000112,2]
[397046789,1765143043802,-500.0,0.00011233,2]
[397046792,1765143043816,-500.0,0.00011233,2]
[397046794,1765143043830,-546.0,0.00011233,2]
[397046797,1765143043845,-355.26774955,0.00011233,2]
[397046799,1765143043854,-151.0,0.00011233,2]
[397046801,1765143043863,-500.0,0.00011233,2]
[397046803,1765143043872,-151.0,0.00011233,2]
[397046805,1765143043882,-254.08447662,0.00011233,2]
[397046834,1765143044146,-500.0,0.00011233,2]
[397046838,1765143044176,-500.0,0.00011233,2]
[397046842,1765143044198,-500.0,0.00011233,2]
[397046844,1765143044208,-1927.65161002,0.00011246,2]
[397046846,1765143044217,-352.90002463,0.00011249,2]
[397046847,1765143044226,-1927.65161002,0.00011331,2]
[397046850,1765143044236,-494.1393581,0.0001137,2]
[397046852,1765143044245,-546.0,0.0001137,2]
[397046853,1765143044254,-160.31543182,0.0001137,2]
[397046855,1765143044263,-500.0,0.0001137,2]
[397046857,1765143044273,-181.5087785,0.0001137,2]
[397046860,1765143044283,-392.308308,0.0001137,2]
[397046862,1765143044293,-500.0,0.0001137,2]
[397046864,1765143044302,-500.0,0.0001137,2]
[397046865,1765143044311,-151.0,0.00011397,2]
[397046868,1765143044320,-1927.65161002,0.00011415,2]
[397046869,1765143044329,-500.0,0.00011471,2]
[397046871,1765143044339,-1927.65161002,0.000115,2]
[397046873,1765143044348,-500.0,0.00011507,2]
[397046876,1765143044358,-546.0,0.00011507,2]
[397046878,1765143044367,-233.63922505,0.00011507,2]
[397046880,1765143044376,-500.0,0.00011507,2]
[397046882,1765143044386,-500.0,0.00011507,2]
[397046884,1765143044394,-1927.65161002,0.00011584,2]
[397046886,1765143044403,-29663.7829912,0.00011612,2]
[397046888,1765143044412,-546.0,0.00011644,2]
[397046890,1765143044422,-500.0,0.00011644,2]
[397046891,1765143044431,-500.0,0.00011644,2]
[397046893,1765143044440,-1927.65161002,0.00011669,2]
[397046896,1765143044449,-500.0,0.00011745,2]
[397046898,1765143044459,-1929.57926163,0.00011754,2]
[397046900,1765143044469,-162.0,0.00011781,3]
[397046901,1765143044477,-500.0,0.00011781,2]
[397046903,1765143044486,-546.0,0.00011781,2]
[397046905,1765143044496,-535.64593231,0.00011781,2]
[397046908,1765143044505,-500.0,0.00011781,2]
[397046909,1765143044515,-699.95894489,0.00011805,2]
[397046911,1765143044524,-6618.8846494,0.00011904,2]
[397046914,1765143044535,-546.0,0.00011918,2]
[397046916,1765143044544,-279.63983745,0.00011918,2]
[397046917,1765143044556,-151.0,0.00011945,2]
[397046919,1765143044566,-166.26808157,0.00011955,2]
[397046922,1765143044575,-720.0,0.00011987,2]
[397046924,1765143044585,-764.32,0.00012,2]
[397046925,1765143044595,-2000.0,0.00012,2]
[397046928,1765143044605,-194.06537762,0.00012008,2]
[397046929,1765143044614,-500.0,0.00012019,2]
[397046931,1765143044623,-600.0,0.00012019,2]
[397046933,1765143044632,-500.0,0.00012055,2]
[397046936,1765143044644,-546.0,0.00012055,2]
[397046938,1765143044654,-328.4966787,0.00012061,2]
[397046939,1765143044663,-204.0,0.00012092,2]
[397046942,1765143044672,-2351.0,0.00012098,2]
[397046943,1765143044682,-587.0,0.00012099,2]
[397046945,1765143044691,-375.25974188,0.00012177,2]
[397046948,1765143044701,-375.42477566,0.00012178,2]
[397046949,1765143044710,-348.96836204,0.00012183,2]
[397046951,1765143044720,-546.0,0.00012192,2]
[397046953,1765143044730,-500.0,0.00012293,2]
[397046956,1765143044743,-428.86827644,0.00012294,2]
[397046958,1765143044751,-299.28254683,0.00012313,2]
[397046960,1765143044762,-209.0,0.00012329,3]
[397046962,1765143044772,-500.0,0.00012329,2]
[397046964,1765143044781,-333.32,0.00012329,2]
[397046966,1765143044791,-277.76,0.00012329,2]
[397046968,1765143044800,-231.47,0.00012329,2]
[397046970,1765143044813,-192.89,0.00012329,2]
[397046972,1765143044822,-160.74,0.00012329,2]
[397046974,1765143044832,-803.75,0.00012329,2]
[397046976,1765143044841,-546.0,0.00012329,2]
[397046978,1765143044850,-1228.8,0.00012337,2]
[397046980,1765143044859,-546.0,0.00012466,2]
[397046982,1765143044869,-151.0,0.00012493,2]
[397046984,1765143044878,-500.0,0.00012567,2]
[397046986,1765143044887,-292.46156189,0.00012581,2]
[397046988,1765143044896,-803.70439547,0.00012595,2]
[397046990,1765143044906,-500.0,0.00012603,2]
[397046992,1765143044915,-546.0,0.00012603,2]
[397046994,1765143044924,-292.17055894,0.00012603,2]
[397046997,1765143044936,-700.65890384,0.00012648,2]
[397046999,1765143044946,-293.04512301,0.00012648,2]
[397047001,1765143044955,-234.16799192,0.00012661,3]
[397047003,1765143044964,-546.0,0.0001274,2]
[397047005,1765143044973,-267.47005216,0.00012787,3]
[397047007,1765143044982,-2663.35515478,0.000128,2]
[397047009,1765143044991,-10000.0,0.000128,2]
[397047011,1765143045000,-154.85202358,0.00012806,3]
[397047013,1765143045009,-500.0,0.00012841,2]
[397047015,1765143045018,-500.0,0.00012877,2]
[397047016,1765143045028,-225.67171453,0.00012877,2]
[397047018,1765143045038,-546.0,0.00012877,2]
[397047021,1765143045047,-578579.28888251,0.000129,2]
[397047023,1765143045057,-350.0,0.000129,2]
[397047024,1765143045066,-10000.0,0.000129,2]
[397047026,1765143045075,-985.84,0.00013,2]
[397047029,1765143045085,-76528.25382133,0.00013,2]
[397047031,1765143045095,-936.68913272,0.00013,2]
[397047032,1765143045104,-12613.91522797,0.00013,6]
[397047035,1765143045115,-546.0,0.00013014,2]
[397047037,1765143045124,-151.0,0.00013041,2]
[397047039,1765143045134,-5314.99104051,0.0001309,2]
[397047041,1765143045143,-500.0,0.00013115,2]
[397047043,1765143045153,-500.0,0.0001315,2]
[397047045,1765143045162,-500.0,0.00013151,2]
[397047047,1765143045172,-154.981802,0.00013151,2]
[397047049,1765143045182,-546.0,0.00013151,2]
[397047051,1765143045193,-864.0,0.00013186,2]
[397047053,1765143045202,-406.73223177,0.00013249,2]
[397047055,1765143045212,-500.0,0.00013273,2]
[397047056,1765143045220,-500.0,0.00013273,2]
[397047057,1765143045230,-217.21668834,0.00013273,2]
[397047058,1765143045239,-500.0,0.00013273,2]
[397047059,1765143045248,-500.0,0.00013273,2]
[397047060,1765143045257,-500.0,0.00013273,2]
[397047061,1765143045266,-500.0,0.00013273,2]
[397047062,1765143045275,-500.0,0.00013273,2]
[397047063,1765143045285,-500.0,0.00013273,2]
[397047064,1765143045294,-500.0,0.00013273,2]
[397047065,1765143045303,-500.0,0.00013273,2]
[397047066,1765143045312,-500.0,0.00013273,2]
[397047068,1765143045321,-500.0,0.00013273,2]
[397047070,1765143045330,-500.0,0.00013273,2]
[397047072,1765143045339,-500.0,0.00013273,2]
[397047074,1765143045348,-500.0,0.00013273,2]
[397047076,1765143045357,-500.0,0.00013273,2]
[397047078,1765143045367,-500.0,0.00013273,2]
[397047080,1765143045376,-500.0,0.00013273,2]
[397047082,1765143045385,-500.0,0.00013273,2]
[397047084,1765143045394,-500.0,0.00013273,2]
[397047086,1765143045403,-500.0,0.00013273,2]
[397047088,1765143045413,-500.0,0.00013273,2]
[397047090,1765143045423,-500.82139563,0.00013273,2]
[397047092,1765143045432,-483.39626604,0.00013273,2]
[397047095,1765143045442,-500.0,0.00013273,2]
[397047097,1765143045451,-500.0,0.00013273,2]
[397047099,1765143045461,-500.0,0.00013273,2]
[397047101,1765143045470,-500.0,0.00013273,2]
[397047103,1765143045480,-500.0,0.00013273,2]
[397047104,1765143045489,-161.32233997,0.00013273,2]
[397047107,1765143045499,-500.0,0.00013273,2]
[397047109,1765143045509,-500.0,0.00013273,2]
[397047110,1765143045518,-500.64293709,0.00013273,2]
[397047112,1765143045527,-500.0,0.00013273,2]
[397047115,1765143045537,-517.48003723,0.00013273,2]
[397047117,1765143045547,-500.0,0.00013273,2]
[397047119,1765143045559,-290.39948299,0.00013273,2]
[397047121,1765143045568,-500.0,0.00013273,2]
[397047123,1765143045578,-500.0,0.00013273,2]
[397047125,1765143045587,-500.0,0.00013273,2]
[397047127,1765143045595,-158.81151441,0.00013273,2]
[397047129,1765143045606,-526.84906751,0.00013273,2]
[397047131,1765143045616,-500.0,0.00013273,2]
[397047133,1765143045626,-500.0,0.00013273,2]
[397047135,1765143045636,-393.88347054,0.00013273,2]
[397047137,1765143045648,-500.0,0.00013273,2]
[397047139,1765143045659,-500.0,0.00013273,2]
[397047141,1765143045668,-500.0,0.00013273,2]
[397047143,1765143045678,-500.0,0.00013273,2]
[397047145,1765143045687,-500.0,0.00013273,2]
[397047147,1765143045695,-500.0,0.00013273,2]
[397047149,1765143045704,-500.0,0.00013273,2]
[397047151,1765143045713,-500.0,0.00013273,2]
[397047153,1765143045722,-484.81696143,0.00013273,2]
[397047155,1765143045732,-500.0,0.00013273,2]
[397047157,1765143045741,-500.0,0.00013273,2]
[397047159,1765143045751,-500.0,0.00013273,2]
[397047161,1765143045760,-500.0,0.00013273,2]
[397047162,1765143045768,-500.0,0.00013273,2]
[397047164,1765143045777,-500.0,0.00013273,2]
[397047166,1765143045787,-500.0,0.00013273,2]
[397047168,1765143045795,-500.0,0.00013273,2]
[397047170,1765143045805,-491.30038684,0.00013273,2]
[397047172,1765143045814,-500.0,0.00013273,2]
[397047174,1765143045824,-500.0,0.00013273,2]
[397047176,1765143045834,-500.0,0.00013273,2]
[397047178,1765143045843,-500.0,0.00013273,2]
[397047180,1765143045852,-500.0,0.00013273,2]
[397047182,1765143045862,-614.16037905,0.00013273,2]
[397047184,1765143045872,-351.18851285,0.00013273,2]
[397047186,1765143045881,-546.0,0.00013288,2]
[397047188,1765143045890,-2560.0,0.00013307,2]
[397047190,1765143045899,-823.0,0.00013309,2]
[397047192,1765143045908,-500.0,0.00013389,2]
[397047195,1765143045918,-600.0,0.00013389,2]
[397047197,1765143045927,-10000.0,0.000134,2]
[397047199,1765143045937,-157.25,0.00013415,2]
[397047201,1765143045946,-500.0,0.00013424,2]
[397047203,1765143045955,-500.0,0.00013425,2]
[397047205,1765143045965,-210.0,0.00013425,3]
[397047207,1765143045974,-546.0,0.00013425,2]
[397047209,1765143045983,-127264.21716014,0.000135,2]
[397047211,1765143045992,-39481.70603796,0.000135,2]
[397047213,1765143046001,-546.0,0.00013562,2]
[397047215,1765143046011,-2554.52252074,0.00013578,7]
[397047217,1765143046020,-151.0,0.00013589,2]
[397047219,1765143046029,-13359.16892902,0.00013599,2]
[397047221,1765143046038,-159.10999435,0.00013602,2]
[397047223,1765143046047,-157.25,0.00013607,2]
[397047225,1765143046056,-500.0,0.00013663,2]
[397047227,1765143046065,-300.0,0.00013673,2]
[397047229,1765143046075,-202.92,0.00013697,2]
[397047231,1765143046084,-500.0,0.00013698,2]
[397047234,1765143046094,-500.0,0.00013698,2]
[397047235,1765143046104,-500.0,0.00013698,2]
[397047238,1765143046114,-500.0,0.00013698,2]
[397047240,1765143046124,-500.0,0.00013698,2]
[397047242,1765143046133,-500.0,0.00013698,2]
[397047244,1765143046142,-500.0,0.00013698,2]
[397047245,1765143046152,-500.0,0.00013698,2]
[397047247,1765143046161,-193.56956693,0.00013698,2]
[397047249,1765143046170,-1696.86,0.00013698,2]
[397047251,1765143046179,-1696.86,0.00013698,2]
[397047253,1765143046188,-1696.86,0.00013698,2]
[397047255,1765143046197,-1696.86,0.00013698,2]
[397047257,1765143046206,-1696.86,0.00013698,2]
[397047259,1765143046215,-1696.86,0.00013698,2]
[397047261,1765143046227,-1696.86,0.00013698,2]
[397047263,1765143046237,-1696.86,0.00013698,2]
[397047265,1765143046247,-1696.86,0.00013698,2]
[397047267,1765143046256,-1696.86,0.00013698,2]
[397047269,1765143046266,-1696.86,0.00013698,2]
[397047271,1765143046275,-1696.86,0.00013698,2]
[397047273,1765143046285,-1696.86,0.00013698,2]
[397047275,1765143046294,-1696.86,0.00013698,2]
[397047277,1765143046303,-1696.86,0.00013698,2]
[397047279,1765143046313,-1696.86,0.00013698,2]
[397047281,1765143046322,-1696.86,0.00013698,2]
[397047283,1765143046331,-1696.86,0.00013698,2]
[397047285,1765143046340,-1696.86,0.00013698,2]
[397047288,1765143046349,-1696.86,0.00013698,2]
[397047290,1765143046359,-1696.86,0.00013698,2]
[397047292,1765143046368,-1696.86,0.00013698,2]
[397047294,1765143046377,-1696.86,0.00013698,2]
[397047296,1765143046387,-1696.99139382,0.00013698,2]
[397047298,1765143046396,-500.0,0.00013698,2]
[397047299,1765143046406,-500.0,0.00013698,2]
[397047302,1765143046415,-223.46497486,0.00013698,2]
[397047303,1765143046424,-500.0,0.00013698,2]
[397047305,1765143046433,-500.0,0.00013698,2]
[397047307,1765143046442,-500.0,0.00013698,2]
[397047309,1765143046451,-500.0,0.00013698,2]
[397047311,1765143046460,-357.66158975,0.00013698,2]
[397047313,1765143046469,-500.0,0.00013698,2]
[397047315,1765143046480,-500.0,0.00013698,2]
[397047317,1765143046489,-453.64049466,0.00013698,2]
[397047319,1765143046498,-2547.76,0.00013698,2]
[397047321,1765143046508,-2547.76,0.00013698,2]
[397047323,1765143046517,-2547.76,0.00013698,2]
[397047325,1765143046527,-2547.76,0.00013698,2]
[397047327,1765143046536,-2547.76,0.00013698,2]
[397047329,1765143046545,-2547.76,0.00013698,2]
[397047331,1765143046556,-2547.76,0.00013698,2]
[397047333,1765143046566,-500.0,0.00013698,2]
[397047335,1765143046576,-2547.76,0.00013698,2]
[397047337,1765143046585,-500.0,0.00013698,2]
[397047339,1765143046595,-2547.76,0.00013698,2]
[397047341,1765143046604,-500.0,0.00013698,2]
[397047343,1765143046613,-2547.76,0.00013698,2]
[397047345,1765143046622,-500.0,0.00013698,2]
[397047347,1765143046634,-2547.76,0.00013698,2]
[397047349,1765143046643,-500.0,0.00013698,2]
[397047351,1765143046653,-2547.76,0.00013698,2]
[397047353,1765143046662,-515.32014529,0.00013698,2]
[397047355,1765143046672,-2547.76,0.00013698,2]
[397047357,1765143046681,-2547.76,0.00013698,2]
[397047359,1765143046689,-2547.76,0.00013698,2]
[397047361,1765143046698,-2547.76,0.00013698,2]
[397047363,1765143046707,-2547.76,0.00013698,2]
[397047365,1765143046716,-2547.76,0.00013698,2]
[397047367,1765143046726,-2547.76,0.00013698,2]
[397047369,1765143046735,-2547.76,0.00013698,2]
[397047371,1765143046744,-2547.76,0.00013698,2]
[397047373,1765143046753,-2547.76,0.00013698,2]
[397047375,1765143046763,-2547.76,0.00013698,2]
[397047377,1765143046771,-2547.87283944,0.00013698,2]
[397047379,1765143046780,-1768.74,0.00013698,2]
[397047380,1765143046789,-1768.74,0.00013698,2]
[397047382,1765143046798,-1768.74,0.00013698,2]
[397047385,1765143046807,-1768.74,0.00013698,2]
[397047386,1765143046816,-1768.74,0.00013698,2]
[397047388,1765143046825,-1768.74,0.00013698,2]
[397047390,1765143046835,-1768.74,0.00013698,2]
[397047392,1765143046844,-1768.74,0.00013698,2]
[397047394,1765143046854,-1768.74,0.00013698,2]
[397047396,1765143046862,-1768.74,0.00013698,2]
[397047398,1765143046871,-1768.74,0.00013698,2]
[397047400,1765143046881,-1768.74,0.00013698,2]
[397047402,1765143046890,-1768.74,0.00013698,2]
[397047404,1765143046899,-1768.74,0.00013698,2]
[397047406,1765143046907,-1768.74,0.00013698,2]
[397047408,1765143046917,-1768.74,0.00013698,2]
[397047410,1765143046926,-1768.74,0.00013698,2]
[397047412,1765143046936,-1768.74,0.00013698,2]